fUST/lending_fUST_20250103
["ID","MTS","AMOUNT","RATE_DAILY","PERIOD"]
[347490294,1735873840371,-500.0,0.00019178,2]
[347490296,1735873840380,-500.0,0.00019178,2]
[347490298,1735873840390,-530.52920135,0.00019178,2]
[347490300,1735873840400,-503.4234402,0.00019178,2]
[347490302,1735873840410,-500.0,0.00019178,2]
[347490304,1735873840420,-500.0,0.00019178,2]
[347490306,1735873840429,-485.15008804,0.00019178,2]
[347490308,1735873840439,-500.0,0.00019178,2]
[347490310,1735873840449,-500.0,0.00019178,2]
[347490313,1735873840459,-500.0,0.00019178,2]
[347490315,1735873840468,-500.0,0.00019178,2]
[347490317,1735873840477,-500.0,0.00019178,2]
[347490319,1735873840487,-501.87435648,0.00019178,2]
[347490321,1735873840497,-504.69445165,0.00019178,2]
[347490323,1735873840506,-500.0,0.00019178,2]
[347490325,1735873840515,-500.0,0.00019178,2]
[347490327,1735873840525,-503.01600369,0.00019178,2]
[347490329,1735873840535,-500.0,0.00019178,2]
[347490331,1735873840544,-500.85681434,0.00019178,2]
[347490333,1735873840554,-504.13579828,0.00019178,2]
[347490335,1735873840564,-501.10440817,0.00019178,2]
[347490337,1735873840573,-500.0,0.00019178,2]
[347490339,1735873840583,-501.64584284,0.00019178,2]
[347490341,1735873840591,-500.0,0.00019178,2]
[347490344,1735873840602,-500.0,0.00019178,2]
[347490346,1735873840611,-502.80815148,0.00019178,2]
[347490348,1735873840620,-504.7267382,0.00019178,2]
[347490350,1735873840630,-511.5492536,0.00019178,2]
[347490352,1735873840639,-168.68577715,0.00019178,2]
[347490354,1735873840648,-500.0,0.00019178,2]
[347490356,1735873840658,-500.0,0.00019178,2]
[347490358,1735873840667,-500.0,0.00019178,2]
[347490360,1735873840676,-500.0,0.00019178,2]
[347490362,1735873840686,-472.090711,0.00019178,2]
[347490364,1735873840696,-217.253086,0.00019178,2]
[347490366,1735873840705,-217.253086,0.00019178,2]
[347490368,1735873840715,-217.253086,0.00019178,2]
[347490370,1735873840724,-217.253086,0.00019178,2]
[347490372,1735873840734,-217.253086,0.00019178,2]
[347490375,1735873840743,-217.253086,0.00019178,2]
[347490377,1735873840753,-217.253086,0.00019178,2]
[347490379,1735873840762,-508.70557492,0.00019178,2]
[347490381,1735873840771,-217.253086,0.00019178,2]
[347490383,1735873840781,-217.253086,0.00019178,2]
[347490385,1735873840791,-217.253086,0.00019178,2]
[347490387,1735873840801,-217.253086,0.00019178,2]
[347490389,1735873840811,-217.253086,0.00019178,2]
[347490391,1735873840820,-217.253086,0.00019178,2]
[347490393,1735873840829,-217.253086,0.00019178,2]
[347490395,1735873840839,-500.0,0.00019178,2]
[347490397,1735873840848,-500.0,0.00019178,2]
[347490399,1735873840857,-504.60658504,0.00019178,2]
[347490401,1735873840867,-504.33511396,0.00019178,2]
[347490403,1735873840876,-217.253086,0.00019178,2]
[347490405,1735873840885,-500.0,0.00019178,2]
[347490407,1735873840895,-500.0,0.00019178,2]
[347490409,1735873840904,-217.253086,0.00019178,2]
[347490411,1735873840913,-217.253086,0.00019178,2]
[347490413,1735873840923,-217.253086,0.00019178,2]
[347490415,1735873840932,-217.253086,0.00019178,2]
[347490417,1735873840941,-245.12814796,0.00019178,2]
[347490419,1735873840951,-217.253087,0.00019178,2]
[347490421,1735873840960,-507.91020554,0.00019178,2]
[347490422,1735873840969,-500.0,0.00019178,2]
[347490424,1735873840978,-500.0,0.00019178,2]
[347490426,1735873840987,-503.69892076,0.00019178,2]
[347490428,1735873840997,-500.0,0.00019178,2]
[347490430,1735873841006,-637.86,0.00019178,2]
[347490432,1735873841015,-151.0,0.00019178,2]
[347490434,1735873841025,-151.0,0.00019178,2]
[347490436,1735873841035,-500.0,0.00019178,2]
[347490438,1735873841044,-151.0,0.00019178,2]
[347490440,1735873841054,-151.0,0.00019178,2]
[347490442,1735873841063,-151.0,0.00019178,2]
[347490444,1735873841072,-503.08008656,0.00019178,2]
[347490446,1735873841082,-151.0,0.00019178,2]
[347490448,1735873841091,-500.0,0.00019178,2]
[347490450,1735873841101,-151.0,0.00019178,2]
[347490452,1735873841110,-151.0,0.00019178,2]
[347490454,1735873841119,-151.0,0.00019178,2]
[347490456,1735873841129,-151.0,0.00019178,2]
[347490458,1735873841139,-151.0,0.00019178,2]
[347490459,1735873841150,-491.32115568,0.00019178,2]
[347490460,1735873841160,-151.0,0.00019178,2]
[347490461,1735873841169,-151.0,0.00019178,2]
[347490462,1735873841179,-151.0,0.00019178,2]
[347490464,1735873841188,-257.558112,0.00019178,2]
[347490466,1735873841198,-290.5728258,0.00019178,2]
[347490468,1735873841207,-504.56529049,0.00019178,2]
[347490470,1735873841216,-500.0,0.00019178,2]
[347490472,1735873841226,-500.0,0.00019178,2]
[347490473,1735873841235,-508.71543438,0.00019178,2]
[347490475,1735873841244,-500.0,0.00019178,2]
[347490477,1735873841254,-503.01647081,0.00019178,2]
[347490478,1735873841263,-500.55604,0.00019178,2]
[347490479,1735873841273,-498.86658393,0.00019178,2]
[347490480,1735873841283,-503.77874944,0.00019178,2]
[347490481,1735873841293,-503.85192987,0.00019178,2]
[347490482,1735873841303,-500.0,0.00019178,2]
[347490483,1735873841312,-500.0,0.00019178,2]
[347490484,1735873841321,-508.54905526,0.00019178,2]
[347490485,1735873841331,-500.0,0.00019178,2]
[347490486,1735873841340,-505.09473128,0.00019178,2]
[347490487,1735873841349,-500.0,0.00019178,2]
[347490488,1735873841359,-853.39,0.00019178,2]
[347490489,1735873841368,-500.0,0.00019178,2]
[347490490,1735873841378,-504.5474997,0.00019178,2]
[347490491,1735873841387,-500.0,0.00019178,2]
[347490492,1735873841397,-581.46489747,0.00019178,2]
[347490493,1735873841406,-500.0,0.00019178,2]
[347490494,1735873841416,-506.53105089,0.00019178,2]
[347490495,1735873841425,-500.0,0.00019178,2]
[347490496,1735873841434,-500.0,0.00019178,2]
[347490497,1735873841443,-562.12,0.00019178,2]
[347490498,1735873841452,-500.0,0.00019178,2]
[347490499,1735873841462,-500.0,0.00019178,2]
[347490500,1735873841471,-505.15781984,0.00019178,2]
[347490501,1735873841481,-500.0,0.00019178,2]
[347490502,1735873841490,-502.78833212,0.00019178,2]
[347490503,1735873841500,-885.68,0.00019178,2]
[347490504,1735873841509,-500.0,0.00019178,2]
[347490505,1735873841519,-500.0,0.00019178,2]
[347490506,1735873841528,-502.07044811,0.00019178,2]
[347490507,1735873841539,-535.57,0.00019178,2]
[347490508,1735873841548,-500.0,0.00019178,2]
[347490509,1735873841559,-505.50625606,0.00019178,2]
[347490510,1735873841570,-784.37,0.00019178,2]
[347490511,1735873841585,-500.0,0.00019178,2]
[347490512,1735873841594,-1288.07,0.00019178,2]
[347490513,1735873841605,-500.0,0.00019178,2]
[347490514,1735873841614,-513.46802475,0.00019178,2]
[347490515,1735873841624,-1131.64,0.00019178,2]
[347490516,1735873841634,-500.0,0.00019178,2]
[347490517,1735873841643,-901.92,0.00019178,2]
[347490518,1735873841653,-500.0,0.00019178,2]
[347490519,1735873841662,-505.15825585,0.00019178,2]
[347490520,1735873841671,-236.51824162,0.00019178,2]
[347490521,1735873841681,-1073.39,0.00019178,2]
[347490522,1735873841690,-640.18393985,0.00019178,2]
[347490523,1735873841699,-500.0,0.00019178,2]
[347490524,1735873841709,-504.26846205,0.00019178,2]
[347490525,1735873841718,-506.24621394,0.00019178,2]
[347490526,1735873841728,-500.0,0.00019178,2]
[347490527,1735873841737,-500.0,0.00019178,2]
[347490528,1735873841746,-618.94,0.00019178,2]
[347490529,1735873841756,-636.27,0.00019178,2]
[347490530,1735873841765,-500.0,0.00019178,2]
[347490531,1735873841774,-509.22252329,0.00019178,2]
[347490532,1735873841784,-710.73,0.00019178,2]
[347490533,1735873841793,-500.0,0.00019178,2]
[347490534,1735873841803,-500.0,0.00019178,2]
[347490535,1735873841812,-500.0,0.00019178,2]
[347490536,1735873841822,-732.88,0.00019178,2]
[347490537,1735873841831,-616.6,0.00019178,2]
[347490538,1735873841840,-565.28,0.00019178,2]
[347490539,1735873841849,-995.06,0.00019178,2]
[347490540,1735873841859,-500.0,0.00019178,2]
[347490541,1735873841868,-500.0,0.00019178,2]
[347490542,1735873841878,-151.0,0.00019178,2]
[347490543,1735873841888,-151.0,0.00019178,2]
[347490544,1735873841898,-151.0,0.00019178,2]
[347490545,1735873841908,-151.0,0.00019178,2]
[347490546,1735873841917,-151.0,0.00019178,2]
[347490547,1735873841929,-151.0,0.00019178,2]
[347490548,1735873841939,-151.0,0.00019178,2]
[347490549,1735873841948,-2899.03,0.00019178,2]
[347490550,1735873841958,-151.0,0.00019178,2]
[347490551,1735873841967,-151.0,0.00019178,2]
[347490552,1735873841977,-2253.22,0.00019178,2]
[347490553,1735873841987,-517.07333166,0.00019178,2]
[347490554,1735873841997,-151.0,0.00019178,2]
[347490555,1735873842006,-151.0,0.00019178,2]
[347490556,1735873842016,-151.0,0.00019178,2]
[347490557,1735873842026,-500.0,0.00019178,2]
[347490558,1735873842037,-506.19635847,0.00019178,2]
[347490559,1735873842193,-500.0,0.00019178,2]
[347490560,1735873842203,-151.0,0.00019178,2]
[347490561,1735873842213,-151.0,0.00019178,2]
[347490562,1735873842225,-500.0,0.00019178,2]
[347490563,1735873842235,-500.0,0.00019178,2]
[347490564,1735873842244,-500.0,0.00019178,2]
[347490565,1735873842254,-500.0,0.00019178,2]
[347490566,1735873842264,-500.0,0.00019178,2]
[347490567,1735873842274,-506.88699056,0.00019178,2]
[347490568,1735873842284,-514.28035311,0.00019178,2]
[347490569,1735873842294,-513.76108104,0.00019178,2]
[347490570,1735873842304,-553.57,0.00019178,2]
[347490571,1735873842314,-500.0,0.00019178,2]
[347490572,1735873842323,-618.25,0.00019178,2]
[347490573,1735873842333,-456.54382713,0.00019178,2]
[347490574,1735873842342,-585.3,0.00019178,2]
[347490575,1735873842352,-503.25012911,0.00019178,2]
[347490576,1735873842361,-503.22642159,0.00019178,2]
[347490577,1735873842371,-565.24,0.00019178,2]
[347490578,1735873842380,-757.08,0.00019178,2]
[347490579,1735873842390,-151.0,0.00019178,2]
[347490580,1735873842400,-151.0,0.00019178,2]
[347490581,1735873842410,-151.0,0.00019178,2]
[347490582,1735873842420,-151.0,0.00019178,2]
[347490583,1735873842431,-151.0,0.00019178,2]
[347490584,1735873842441,-151.0,0.00019178,2]
[347490585,1735873842450,-151.0,0.00019178,2]
[347490586,1735873842460,-151.0,0.00019178,2]
[347490587,1735873842471,-151.0,0.00019178,2]
[347490588,1735873842481,-191.483612,0.00019178,2]
[347490589,1735873842490,-502.5752157,0.00019178,2]
[347490590,1735873842500,-500.0,0.00019178,2]
[347490591,1735873842509,-500.0,0.00019178,2]
[347490592,1735873842519,-500.0,0.00019178,2]
[347490593,1735873842529,-500.0,0.00019178,2]
[347490594,1735873842539,-500.0,0.00019178,2]
[347490595,1735873842551,-500.0,0.00019178,2]
[347490596,1735873842561,-500.0,0.00019178,2]
[347490597,1735873842571,-500.0,0.00019178,2]
[347490598,1735873842580,-1234.67,0.00019178,2]
[347490599,1735873842590,-500.0,0.00019178,2]
[347490600,1735873842600,-5371.44,0.00019178,2]
[347490601,1735873842609,-505.27947412,0.00019178,2]
[347490602,1735873842619,-509.89008674,0.00019178,2]
[347490603,1735873842628,-500.0,0.00019178,2]
[347490604,1735873842638,-552.85,0.00019178,2]
[347490605,1735873842648,-500.0,0.00019178,2]
[347490606,1735873842657,-1361.54,0.00019178,2]
[347490607,1735873842668,-500.0,0.00019178,2]
[347490608,1735873842678,-500.0,0.00019178,2]
[347490609,1735873842688,-502.08100738,0.00019178,2]
[347490610,1735873842698,-500.0,0.00019178,2]
[347490611,1735873842707,-500.0,0.00019178,2]
[347490612,1735873842717,-500.0,0.00019178,2]
[347490613,1735873842730,-500.0,0.00019178,2]
[347490615,1735873842740,-500.0,0.00019178,2]
[347490617,1735873842750,-500.0,0.00019178,2]
[347490619,1735873842760,-500.0,0.00019178,2]
[347490620,1735873842771,-500.0,0.00019178,2]
[347490621,1735873842781,-500.0,0.00019178,2]
[347490622,1735873842791,-500.0,0.00019178,2]
[347490623,1735873842800,-500.0,0.00019178,2]
[347490624,1735873842810,-500.0,0.00019178,2]
[347490625,1735873842822,-500.0,0.00019178,2]
[347490626,1735873842833,-500.0,0.00019178,2]
[347490627,1735873842842,-500.0,0.00019178,2]
[347490628,1735873842852,-500.0,0.00019178,2]
[347490629,1735873842863,-500.0,0.00019178,2]
[347490630,1735873842873,-500.0,0.00019178,2]
[347490631,1735873842884,-500.0,0.00019178,2]
[347490632,1735873842895,-500.0,0.00019178,2]
[347490633,1735873842906,-29975.34,0.00019178,2]
[347490634,1735873842917,-500.0,0.00019178,2]
[347490635,1735873842928,-500.0,0.00019178,2]
[347490636,1735873842939,-500.0,0.00019178,2]
[347490639,1735873842949,-500.0,0.00019178,2]
[347490640,1735873842959,-500.0,0.00019178,2]
[347490641,1735873842969,-500.0,0.00019178,2]
[347490642,1735873842979,-500.0,0.00019178,2]
[347490643,1735873842990,-472.01474636,0.00019178,2]
[347490644,1735873842999,-1536.43,0.00019178,2]
[347490645,1735873843010,-3983.07,0.00019178,2]
[347490646,1735873843020,-500.0,0.00019178,2]
[347490647,1735873843031,-686.65,0.00019178,2]
[347490648,1735873843042,-151.0,0.00019178,2]
[347490649,1735873843051,-151.0,0.00019178,2]
[347490650,1735873843062,-151.0,0.00019178,2]
[347490651,1735873843071,-151.0,0.00019178,2]
[347490652,1735873843080,-151.0,0.00019178,2]
[347490653,1735873843090,-151.0,0.00019178,2]
[347490654,1735873843100,-151.0,0.00019178,2]
[347490655,1735873843109,-151.0,0.00019178,2]
[347490656,1735873843119,-151.0,0.00019178,2]
[347490657,1735873843129,-151.0,0.00019178,2]
[347490658,1735873843138,-277.190314,0.00019178,2]
[347490659,1735873843151,-151.0,0.00019178,2]
[347490660,1735873843161,-151.0,0.00019178,2]
[347490661,1735873843170,-151.0,0.00019178,2]
[347490662,1735873843181,-151.0,0.00019178,2]
[347490663,1735873843190,-500.0,0.00019178,2]
[347490665,1735873843199,-151.0,0.00019178,2]
[347490667,1735873843209,-175.529602,0.00019178,2]
[347490669,1735873843218,-501.56216406,0.00019178,2]
[347490671,1735873843228,-500.0,0.00019178,2]
[347490672,1735873843237,-500.0,0.00019178,2]
[347490673,1735873843247,-2208.73,0.00019178,2]
[347490674,1735873843257,-2208.73,0.00019178,2]
[347490675,1735873843267,-2208.73,0.00019178,2]
[347490676,1735873843278,-2208.73,0.00019178,2]
[347490677,1735873843290,-2208.73,0.00019178,2]
[347490678,1735873843299,-1195.74,0.00019178,2]
[347490679,1735873843309,-500.0,0.00019178,2]
[347490680,1735873843319,-2208.73,0.00019178,2]
[347490681,1735873843332,-2208.73,0.00019178,2]
[347490682,1735873843343,-2208.73,0.00019178,2]
[347490683,1735873843353,-2208.73,0.00019178,2]
[347490684,1735873843363,-2208.73,0.00019178,2]
[347490685,1735873843372,-500.0,0.00019178,2]
[347490686,1735873843382,-859.6,0.00019178,2]
[347490687,1735873843392,-2208.73,0.00019178,2]
[347490688,1735873843402,-2208.73,0.00019178,2]
[347490689,1735873843411,-500.0,0.00019178,2]
[347490690,1735873843421,-2208.73,0.00019178,2]
[347490691,1735873843430,-2208.73,0.00019178,2]
[347490692,1735873843440,-2208.73,0.00019178,2]
[347490693,1735873843455,-2208.73,0.00019178,2]
[347490694,1735873843465,-2208.73,0.00019178,2]
[347490695,1735873843476,-2208.73,0.00019178,2]
[347490697,1735873843487,-2208.73,0.00019178,2]
[347490699,1735873843499,-2208.73,0.00019178,2]
[347490701,1735873843510,-2282.97,0.00019178,2]
[347490703,1735873843520,-2208.73,0.00019178,2]
[347490705,1735873843532,-2208.73,0.00019178,2]
[347490707,1735873843544,-941.57,0.00019178,2]
[347490709,1735873843554,-2208.73,0.00019178,2]
[347490711,1735873843563,-509.24162364,0.00019178,2]
[347490713,1735873843573,-504.64779304,0.00019178,2]
[347490714,1735873843583,-2208.75851126,0.00019178,2]
[347490716,1735873843592,-504.23286663,0.00019178,2]
[347490718,1735873843601,-500.0,0.00019178,2]
[347490720,1735873843610,-500.0,0.00019178,2]
[347490722,1735873843620,-504.50798829,0.00019178,2]
[347490724,1735873843629,-639.51,0.00019178,2]
[347490726,1735873843638,-500.0,0.00019178,2]
[347490728,1735873843647,-504.94649811,0.00019178,2]
[347490730,1735873843657,-500.0,0.00019178,2]
[347490732,1735873843666,-663.27,0.00019178,2]
[347490734,1735873843676,-500.0,0.00019178,2]
[347490736,1735873843685,-2681.04,0.00019178,2]
[347490738,1735873843694,-500.0,0.00019178,2]
[347490740,1735873843703,-500.0,0.00019178,2]
[347490742,1735873843713,-500.0,0.00019178,2]
[347490744,1735873843723,-345.73400669,0.00019178,2]
[347490746,1735873843732,-500.0,0.00019178,2]
[347490748,1735873843741,-500.89807796,0.00019178,2]
[347490750,1735873843752,-500.94045177,0.00019178,2]
[347490752,1735873843761,-500.0,0.00019178,2]
[347490754,1735873843770,-500.0,0.00019178,2]
[347490756,1735873843780,-500.0,0.00019178,2]
[347490758,1735873843790,-506.56860652,0.00019178,2]
[347490760,1735873843800,-500.0,0.00019178,2]
[347490762,1735873843809,-851.07,0.00019178,2]
[347490764,1735873843818,-500.0,0.00019178,2]
[347490766,1735873843827,-500.0,0.00019178,2]
[347490768,1735873843836,-1204.86,0.00019178,2]
[347490770,1735873843845,-500.0,0.00019178,2]
[347490772,1735873843855,-500.0,0.00019178,2]
[347490774,1735873843864,-945.91,0.00019178,2]
[347490776,1735873843873,-500.0,0.00019178,2]
[347490778,1735873843883,-500.0,0.00019178,2]
[347490780,1735873843892,-500.0,0.00019178,2]
[347490782,1735873843901,-500.0,0.00019178,2]
[347490784,1735873843911,-515.95373474,0.00019178,2]
[347490786,1735873843921,-500.0,0.00019178,2]
[347490788,1735873843931,-513.67,0.00019178,2]
[347490790,1735873843940,-500.0,0.00019178,2]
[347490792,1735873843949,-500.0,0.00019178,2]
[347490794,1735873843959,-2104.63,0.00019178,2]
[347490796,1735873843970,-170.3068,0.00019178,2]
[347490798,1735873843979,-908.61855776,0.00019194,2]
[347490800,1735873843988,-618.0,0.000194,2]
[347490802,1735873843997,-151.0,0.00019449,2]
[347490804,1735873844006,-214.726291,0.0001945,2]
[347490806,1735873844016,-214.726291,0.0001945,2]
[347490808,1735873844025,-151.0,0.0001945,2]
[347490809,1735873844035,-151.0,0.0001945,2]
[347490811,1735873844044,-240.685625,0.0001945,2]
[347490813,1735873844053,-151.0,0.0001945,2]
[347490815,1735873844063,-151.0,0.00019451,2]
[347490817,1735873844073,-151.0,0.00019451,2]
[347490819,1735873844082,-433.267046,0.00019451,2]
[347490821,1735873844092,-433.267046,0.00019451,2]
[347490823,1735873844101,-433.267046,0.00019451,2]
[347490825,1735873844111,-433.267046,0.00019451,2]
[347490827,1735873844121,-200.526415,0.00019451,2]
[347490829,1735873844131,-200.526415,0.00019451,2]
[347490831,1735873844143,-1145.63702,0.00019451,2]
[347490833,1735873844153,-1145.63702,0.00019451,2]
[347490835,1735873844163,-151.0,0.00019451,2]
[347490837,1735873844172,-500.0,0.00019451,2]
[347490839,1735873844183,-339.73140832,0.00019451,2]
[347490841,1735873844193,-260.02201629,0.00019451,2]
[347490844,1735873844203,-1524.94509672,0.00019452,2]
[347490845,1735873844214,-39600.72668652,0.00019452,2]
[347490848,1735873844223,-151.0,0.00019452,2]
[347490850,1735873844233,-151.0,0.00019452,2]
[347490852,1735873844243,-151.0,0.00019452,2]
[347490854,1735873844252,-151.0,0.00019452,2]
[347490856,1735873844270,-152.3739,0.00019452,2]
[347490859,1735873844282,-433.267046,0.00019452,2]
[347490861,1735873844292,-433.267041,0.00019452,2]
[347490863,1735873844302,-6846.73,0.00019452,3]
[347490865,1735873844312,-898.65,0.00019452,3]
[347490867,1735873844325,-500.0,0.00019452,3]
[347490869,1735873844334,-214.726291,0.00019452,2]
[347490871,1735873844344,-214.726298,0.00019452,2]
[347490873,1735873844354,-500.0,0.00019452,3]
[347490875,1735873844364,-503.45468208,0.00019452,3]
[347490877,1735873844374,-401.21364377,0.00019452,3]
[347490879,1735873844385,-500.0,0.00019452,3]
[347490882,1735873844395,-500.0,0.00019452,3]
[347490884,1735873844405,-500.0,0.00019452,3]
[347490886,1735873844414,-500.0,0.00019452,3]
[347490888,1735873844424,-500.0,0.00019452,3]
[347490890,1735873844434,-500.0,0.00019452,3]
[347490892,1735873844443,-500.0,0.00019452,3]
[347490894,1735873844452,-500.0,0.00019452,3]
[347490896,1735873844462,-200.526415,0.00019452,2]
[347490898,1735873844471,-500.0,0.00019452,3]
[347490900,1735873844481,-200.526416,0.00019452,2]
[347490902,1735873844490,-426.69392751,0.00019452,3]
[347490904,1735873844500,-500.0,0.00019452,3]
[347490906,1735873844509,-507.3098418,0.00019452,3]
[347490908,1735873844519,-1145.63702,0.00019452,2]
[347490910,1735873844529,-505.18115236,0.00019452,3]
[347490912,1735873844539,-1145.637014,0.00019452,2]
[347490914,1735873844548,-508.5682984,0.00019452,3]
[347490916,1735873844558,-500.0,0.00019452,3]
[347490918,1735873844567,-500.0,0.00019452,3]
[347490920,1735873844577,-500.0,0.00019452,3]
[347490923,1735873844588,-500.0,0.00019452,3]
[347490925,1735873844598,-508.20371837,0.00019452,3]
[347490927,1735873844607,-505.71349642,0.00019452,3]
[347490929,1735873844618,-500.0,0.00019452,3]
[347490931,1735873844627,-315.45770885,0.00019452,3]
[347490933,1735873844637,-551.98621031,0.00019452,3]
[347490935,1735873844646,-500.0,0.00019452,3]
[347490944,1735873844720,-34284.68715467,0.00019452,7]
[347490946,1735873844730,-500.0,0.00019452,3]
[347490948,1735873844739,-507.19355736,0.00019452,3]
[347490950,1735873844748,-326.81226796,0.00019452,3]
[347490952,1735873844758,-500.0,0.00019452,3]
[347490954,1735873844768,-6217.16,0.00019452,3]
[347490955,1735873844778,-502.03968695,0.00019452,3]
[347490958,1735873844789,-500.0,0.00019452,3]
[347490960,1735873844798,-497.20050587,0.00019452,3]
[347490962,1735873844807,-500.0,0.00019452,3]
[347490964,1735873844817,-666.52,0.00019452,3]
[347490965,1735873844828,-500.0,0.00019452,3]
[347490967,1735873844839,-517.56311119,0.00019452,3]
[347490969,1735873844849,-500.0,0.00019452,3]
[347490972,1735873844859,-500.0,0.00019452,3]
[347490973,1735873844870,-500.0,0.00019452,3]
[347490976,1735873844880,-500.0,0.00019452,3]
[347490977,1735873844889,-500.0,0.00019452,3]
[347490980,1735873844898,-500.0,0.00019452,3]
[347490981,1735873844907,-500.0,0.00019452,3]
[347490984,1735873844918,-410.64972044,0.00019452,3]
[347490986,1735873844927,-500.0,0.00019452,3]
[347490988,1735873844937,-686.81,0.00019452,3]
[347490990,1735873844950,-506.45,0.00019452,2]
[347490992,1735873844959,-504.15125254,0.00019452,3]
[347490993,1735873844969,-500.0,0.00019452,3]
[347490996,1735873844978,-546.48,0.00019452,3]
[347490998,1735873844988,-500.0,0.00019452,3]
[347491000,1735873845000,-500.0,0.00019452,3]
[347491001,1735873845009,-794.68,0.00019452,3]
[347491003,1735873845018,-512.28722376,0.00019452,3]
[347491005,1735873845028,-500.0,0.00019452,3]
[347491007,1735873845039,-503.19059554,0.00019452,3]
[347491009,1735873845048,-500.0,0.00019452,3]
[347491011,1735873845057,-500.0,0.00019452,3]
[347491013,1735873845067,-500.0,0.00019452,3]
[347491015,1735873845076,-500.0,0.00019452,3]
[347491017,1735873845085,-500.0,0.00019452,3]
[347491019,1735873845095,-503.97027084,0.00019452,3]
[347491021,1735873845104,-500.0,0.00019452,3]
[347491023,1735873845113,-500.0,0.00019452,3]
[347491025,1735873845122,-500.0,0.00019452,3]
[347491027,1735873845131,-501.44558728,0.00019452,3]
[347491029,1735873845142,-501.92537115,0.00019452,3]
[347491031,1735873845152,-500.0,0.00019452,3]
[347491034,1735873845161,-500.0,0.00019452,3]
[347491036,1735873845171,-506.13638513,0.00019452,3]
[347491038,1735873845180,-500.0,0.00019452,3]
[347491040,1735873845190,-500.0,0.00019452,3]
[347491042,1735873845199,-503.59024159,0.00019452,3]
[347491044,1735873845208,-500.0,0.00019452,3]
[347491046,1735873845217,-500.0,0.00019452,3]
[347491047,1735873845226,-500.0,0.00019452,3]
[347491049,1735873845235,-500.0,0.00019452,3]
[347491052,1735873845245,-500.0,0.00019452,3]
[347491054,1735873845254,-504.44434572,0.00019452,3]
[347491056,1735873845263,-500.0,0.00019452,3]
[347491057,1735873845272,-500.0,0.00019452,3]
[347491060,1735873845281,-637.86,0.00019452,3]
[347491062,1735873845291,-500.0,0.00019452,3]
[347491064,1735873845301,-500.0,0.00019452,3]
[347491065,1735873845310,-151.0,0.00019452,2]
[347491067,1735873845319,-500.0,0.00019452,3]
[347491069,1735873845328,-500.0,0.00019452,3]
[347491071,1735873845337,-500.0,0.00019452,3]
[347491073,1735873845347,-500.0,0.00019452,3]
[347491075,1735873845356,-500.0,0.00019452,3]
[347491077,1735873845365,-500.0,0.00019452,3]
[347491079,1735873845374,-500.0,0.00019452,3]
[347491081,1735873845383,-853.39,0.00019452,3]
[347491083,1735873845391,-500.0,0.00019452,3]
[347491085,1735873845402,-500.0,0.00019452,3]
[347491087,1735873845411,-500.0,0.00019452,3]
[347491089,1735873845420,-511.48898979,0.00019452,3]
[347491091,1735873845429,-562.12,0.00019452,3]
[347491093,1735873845439,-500.0,0.00019452,3]
[347491095,1735873845448,-508.23260175,0.00019452,3]
[347491097,1735873845458,-500.0,0.00019452,3]